bitfinex-derivatives/quotes_SOLF0:USTF0_20250325
["timestamp","ask_amount","ask_price","bid_price","bid_amount"]
[1742912304360,0.049821,145.69,145.65,6.11e-05]
[1742912304659,28.669821,145.69,145.65,6.11e-05]
[1742912305057,6.8644,145.66,145.65,6.11e-05]
[1742912305854,6.8649,145.65,145.64,8.561e-05]
[1742912306161,35.5249,145.65,145.64,8.561e-05]
[1742912307158,6.8649,145.65,145.64,8.561e-05]
[1742912307360,3.912e-05,145.66,145.64,8.86008561]
[1742912307565,3.912e-05,145.66,145.64,2.00008561]
[1742912307754,3.912e-05,145.66,145.65,35.9049]
[1742912309663,3.912e-05,145.66,145.65,35.8449]
[1742912310058,3.912e-05,145.66,145.65,28.98]
[1742912310563,3.912e-05,145.66,145.65,35.8449]
[1742912312467,3.912e-05,145.66,145.65,42.7049]
[1742912313269,74.17369039,145.87,145.65,70.89711086]
[1742912313472,74.17369039,145.87,145.7,32.42362835]
[1742912313663,74.17369039,145.87,145.73,32.42362835]
[1742912313872,74.17369039,145.87,145.76,32.42362835]
[1742912314071,74.17369039,145.87,145.77,1.26032769]
[1742912314272,74.17369039,145.87,145.78,29.28]
[1742912314470,16.92243389,145.86,145.85,6.8555]
[1742912314666,113.15878496,145.88,145.85,6.8555]
[1742912314667,53.80081268,145.88,145.85,29.28]
[1742912314868,6.79e-06,145.87,145.86,6.855]
[1742912315168,187.42579441,145.89,145.85,36.19106952]
[1742912315373,233.3283,146.01,145.94,6.8509]
[1742912315973,233.3283,146.01,145.95,6.8508]
[1742912316168,0.04775769,145.99,145.96,0.05003231]
[1742912316371,29.26,145.98,145.89,29.26]
[1742912316675,29.26,145.98,145.88,6.8536]
[1742912316870,6.8511,145.95,145.88,6.8536]
[1742912317473,0.04437844,145.93,145.9,0.04335188]
[1742912318866,6.8526,145.92,145.9,0.04335188]
[1742912319172,6.90437844,145.93,145.9,5.188e-05]
[1742912319375,0.04437844,145.93,145.9,5.188e-05]
[1742912320278,6.8527,145.91,145.9,5.188e-05]
[1742912321073,13.7127,145.91,145.9,5.188e-05]
[1742912321375,6.8563,145.84,145.82,37.12138749]
[1742912321965,29.16,145.86,145.82,37.12138749]
[1742912321966,29.14,145.89,145.82,6.8568]
[1742912322274,29.14,145.89,145.79,29.14]
[1742912322574,0.04750094,145.85,145.83,0.05152106]
[1742912323566,0.04750094,145.85,145.83,29.15152106]
[1742912323969,0.04750094,145.85,145.84,29.1]
[1742912325477,0.04750094,145.85,145.83,0.05152106]
[1742912325876,6.90340094,145.85,145.83,0.05152106]
[1742912326083,0.04750094,145.85,145.83,0.05152106]
[1742912326281,6.856,145.84,145.83,0.05152106]
[1742912328082,6.90300094,145.85,145.83,0.05152106]
[1742912328485,0.04750094,145.85,145.83,0.05152106]
[1742912329078,6.856,145.84,145.83,0.05152106]
[1742912329781,0.04750094,145.85,145.83,0.05152106]
[1742912329782,6.90310094,145.85,145.83,0.05152106]
[1742912330084,0.04750094,145.85,145.83,0.05152106]
[1742912331984,6.856,145.84,145.83,0.05152106]
[1742912332586,0.04750094,145.85,145.74,226.26]
[1742912332793,28.84,145.85,145.74,28.84]
[1742912332986,28.84,145.85,145.76,6.8594]
[1742912333186,28.84,145.85,145.74,28.84]
[1742912333780,6.8586,145.79,145.74,28.84]
[1742912333987,6.8586,145.79,145.78,0.05044918]
[1742912334287,6.8586,145.79,145.77,0.04374798]
[1742912334486,0.05105991,145.8,145.77,0.04374798]
[1742912334681,28.78,145.88,145.79,6.8583]
[1742912334883,28.78,145.88,145.78,28.78]
[1742912335292,28.78,145.88,145.78,35.6386]
[1742912335492,6.8563,145.84,145.78,28.78]
[1742912335788,28.76,145.89,145.78,28.78]
[1742912335991,6.90329872,145.82,145.8,0.04561651]
[1742912336189,6.90329872,145.82,145.78,35.6387]
[1742912336190,0.04906791,145.82,145.78,35.6387]
[1742912336391,0.04906791,145.82,145.8,0.0459326]
[1742912336687,0.04906791,145.82,145.8,6.9036326]
[1742912336884,0.04906791,145.82,145.8,0.0459326]
[1742912338690,226.28,145.92,145.8,0.0459326]
[1742912338993,28.64,145.91,145.78,28.78]
[1742912339293,28.62,145.91,145.78,28.78]
[1742912339687,6.8562,145.84,145.8,6.8576]
[1742912339895,0.04611749,145.86,145.83,0.04814337]
[1742912340086,28.62,145.87,145.77,28.62]
[1742912340287,0.04665825,145.86,145.73,226.26]
[1742912340489,28.62,145.87,145.81,0.04752084]
[1742912340685,6.859,145.78,145.74,35.5002]
[1742912340987,0.04807781,145.77,145.75,0.05047592]
[1742912341186,28.62,145.83,145.72,37.12138749]
[1742912341494,0.0493113,145.77,145.75,0.04717222]
[1742912341694,28.6,145.79,145.75,0.04717222]
[1742912341989,0.05108711,145.77,145.72,37.12138749]
[1742912342188,0.05108711,145.77,145.76,3.175e-05]
[1742912342383,0.05108711,145.77,145.72,37.12138749]
[1742912343394,6.8598,145.76,145.73,0.04403548]
[1742912343591,0.05108711,145.77,145.73,0.04403548]
[1742912343899,6.8555,145.85,145.73,6.90403548]
[1742912344201,226.28,145.96,145.72,69.54501584]
[1742912344202,28.6,145.93,145.72,69.54501584]
[1742912344492,28.6,145.93,145.72,32.42362835]
[1742912344695,28.6,145.93,145.73,1.25973772]
[1742912344896,28.6,145.93,145.74,1.25966542]
[1742912345092,0.0455499,145.84,145.82,6.90888516]
[1742912345297,6.8551,145.86,145.82,35.4566]
[1742912345501,0.04696611,145.84,145.83,6.8564]
[1742912345690,28.6,145.93,145.82,28.58]
[1742912345891,0.04470715,145.85,145.82,28.62551852]
[1742912346092,28.6,145.93,145.82,28.62551852]
[1742912346093,6.8551,145.86,145.82,35.4366]
[1742912346392,0.04415747,145.85,145.82,35.48169697]
[1742912346998,337.57205572,146.12,145.84,32.42362835]
[1742912347298,30.04578659,146.1,145.87,32.42362835]
[1742912347499,28.8,146.1,145.9,32.42362835]
[1742912347793,28.8,146.1,145.91,28.8]
[1742912347998,0.04877591,146.01,145.99,0.04509143]
[1742912348292,124.98411294,146.11,146.0,28.78]
[1742912348498,6.8459,146.06,146.01,28.78]
[1742912348800,6.8459,146.06,146.02,0.04802994]
[1742912348999,6.8442,146.09,146.02,0.04802994]
[1742912349199,0.05214551,146.05,146.0,28.78]
[1742912349402,0.05214551,146.05,146.04,0.04718002]
[1742912349697,0.05214551,146.05,146.03,0.04675686]
[1742912350303,0.05214551,146.05,146.04,28.7]
[1742912351499,0.05214551,146.05,146.03,0.04675686]
[1742912353511,0.05214551,146.05,145.96,28.62]
[1742912353807,28.64,146.07,145.96,28.62]
[1742912354604,0.04666246,146.03,146.0,0.04377839]
[1742912355801,0.04666246,146.03,146.0,28.62377839]
[1742912356108,0.04666246,146.03,146.0,0.04377839]
[1742912357807,6.8478,146.02,146.0,0.04377839]
[1742912358006,0.04666246,146.03,146.0,0.04377839]
[1742912358811,6.848,146.01,146.0,0.04377839]
[1742912359009,28.56,146.02,145.89,9.34471499]
[1742912359207,28.56,146.02,145.9,28.56]
[1742912360011,6.8511,145.95,145.9,28.56]
[1742912360208,0.04486473,145.97,145.95,0.04756249]
[1742912360409,28.56,146.02,145.9,28.56]
[1742912360606,6.8503,145.96,145.95,0.04796393]
[1742912362114,6.8534,145.9,145.86,226.1]
[1742912362413,28.46,145.98,145.85,37.12138749]
[1742912362414,28.46,145.98,145.87,28.46]
[1742912362710,6.8528,145.91,145.87,28.46]
[1742912362911,28.46,145.98,145.87,28.46]
[1742912363323,0.05105864,145.94,145.91,0.04955164]
[1742912363809,6.8522,145.92,145.91,0.04955164]
[1742912365314,0.05105864,145.94,145.91,0.04955164]
[1742912365707,6.8522,145.92,145.91,0.04955164]
[1742912366911,0.05105864,145.94,145.8,295.58501584]
[1742912367115,28.46,145.98,145.81,28.34]
[1742912367409,28.46,145.98,145.82,28.32]
[1742912367805,13.7007,145.96,145.82,28.32]
[1742912368211,0.04491667,145.9,145.88,0.0338795]
[1742912368521,6.8538,145.89,145.88,0.0338795]
[1742912368915,0.05277109,145.9,145.75,89.50213588]
[1742912369110,28.34,145.89,145.75,102.41112667]
[1742912369409,28.34,145.88,145.75,74.07112667]
[1742912369611,6.8588,145.78,145.75,74.07112667]
[1742912370617,0.04653594,145.79,145.75,74.07112667]
[1742912371117,6.8588,145.78,145.75,74.07112667]
[1742912371517,6.8588,145.78,145.74,112.05780278]
[1742912371518,0.04653594,145.79,145.71,28.4]
[1742912371706,6.8577,145.81,145.71,28.4]
[1742912371910,0.05244729,145.76,145.71,28.4]
[1742912372111,28.4,145.84,145.71,28.4]
[1742912372316,28.4,145.85,145.77,6.8589]
[1742912372514,46.12822835,145.92,145.76,28.4]
[1742912372720,28.4,145.9,145.76,28.4]
[1742912373318,28.36,145.89,145.76,28.4]
[1742912373517,0.04427768,145.84,145.82,0.04335751]
[1742912373718,28.36,145.89,145.82,0.04335751]
[1742912373913,0.04484323,145.84,145.82,0.04335751]
[1742912374119,28.36,145.9,145.81,6.857]
[1742912374421,32.42362835,145.95,145.82,0.04335751]
[1742912374715,0.04976542,145.87,145.74,28.36]
[1742912374915,28.38,145.86,145.73,28.38]
[1742912375418,6.8556,145.85,145.73,28.38]
[1742912375917,3.453e-05,145.8,145.75,32.42362835]
[1742912376218,226.08,145.91,145.75,32.42362835]
[1742912376420,226.08,145.91,145.83,6.8564]
[1742912376615,226.08,145.91,145.84,28.36]
[1742912376911,226.08,145.91,145.81,28.36]
[1742912377418,6.8554,145.86,145.85,0.04679204]
[1742912378519,6.8554,145.86,145.85,9.204e-05]
[1742912380421,13.7154,145.86,145.85,9.204e-05]
[1742912381818,6.86,145.86,145.73,28.3]
[1742912382025,20.5,145.85,145.7,37.12138749]
[1742912382217,6.8624,145.71,145.65,65.40138749]
[1742912382418,28.28,145.75,145.65,65.40138749]
[1742912382720,28.28,145.74,145.65,65.40138749]
[1742912382917,28.28,145.74,145.65,72.26628749]
[1742912383118,0.04379553,145.71,145.65,65.40138749]
[1742912383418,0.04379553,145.71,145.65,72.26588749]
[1742912383616,0.04379553,145.71,145.65,37.12138749]
[1742912383817,6.90619553,145.71,145.65,65.38138749]
[1742912384017,0.04379553,145.71,145.65,65.38138749]
[1742912384416,6.8628,145.7,145.65,37.12138749]
[1742912384620,0.04379553,145.71,145.65,65.38138749]
[1742912384815,0.04379553,145.71,145.65,37.12138749]
[1742912385016,6.8637,145.68,145.65,37.12138749]
[1742912385223,28.28,145.74,145.65,37.12138749]
[1742912385419,0.04600837,145.68,145.65,37.12138749]
[1742912385624,28.28,145.74,145.64,6.8652]
[1742912385825,0.04375455,145.68,145.63,28.26]
[1742912386026,6.90755455,145.68,145.63,28.26]
[1742912386215,6.90755455,145.68,145.63,35.1255]
[1742912386418,6.90755455,145.68,145.63,28.26]
[1742912387430,6.90755455,145.68,145.64,6.8653]
[1742912388224,6.864,145.67,145.63,6.8658]
[1742912388523,0.04375455,145.68,145.63,6.8658]
[1742912388720,0.04375455,145.68,145.62,28.28]
[1742912389424,0.04375455,145.68,145.66,6.8644]
[1742912389823,0.04375455,145.68,145.62,28.28]
[1742912390021,0.04375455,145.68,145.65,6.8648]
[1742912390623,0.04375455,145.68,145.62,28.28]
[1742912391126,0.04375455,145.68,145.65,6.8646]
[1742912391832,0.04375455,145.68,145.62,28.28]
[1742912392029,6.8646,145.66,145.63,28.28]
[1742912392230,28.28,145.73,145.63,28.28]
[1742912392427,0.05105149,145.66,145.61,28.28]
[1742912392628,0.05105149,145.66,145.56,263.40138749]
[1742912392831,6.8652,145.65,145.61,6.8665]
[1742912393027,6.91387628,145.65,145.61,35.1465]
[1742912393527,6.8654,145.64,145.61,28.28]
[1742912394132,6.91377628,145.65,145.61,35.1468]
[1742912394331,0.04867628,145.65,145.61,28.28]
[1742912394732,6.8654,145.64,145.61,28.28]
[1742912394947,0.04867628,145.65,145.61,28.28]
[1742912395234,6.8662,145.63,145.6,28.28]
[1742912395639,0.04619711,145.63,145.58,6.8678]
[1742912395833,0.04619711,145.63,145.59,28.28]
[1742912396139,0.04619711,145.63,145.57,28.28]
[1742912396338,6.8675,145.6,145.57,28.28]
[1742912396539,0.04909151,145.61,145.57,28.28]
[1742912396728,28.28,145.65,145.57,28.28]
[1742912396932,6.91402996,145.6,145.57,28.28]
[1742912397543,6.868,145.59,145.57,28.28]
[1742912398139,0.04652996,145.6,145.56,28.28]
[1742912398330,6.867,145.61,145.56,28.28]
[1742912398539,0.04454823,145.59,145.56,28.28]
[1742912398744,0.04454823,145.59,145.57,6.8683]
[1742912399243,13.7272,145.68,145.6,6.8672]
[1742912399244,6.8656,145.64,145.6,6.8672]
[1742912399747,6.8652,145.65,145.6,28.28]
[1742912400145,6.8638,145.68,145.64,6.865]
[1742912400443,0.05019512,145.67,145.64,28.28]
[1742912400647,28.28,145.73,145.65,0.04454823]
[1742912400845,0.04495536,145.67,145.65,0.04454823]
[1742912401146,6.8647,145.66,145.65,0.04454823]
[1742912402847,6.90783081,145.67,145.65,0.04454823]
[1742912403050,0.04373081,145.67,145.65,0.04454823]
[1742912403446,6.90803081,145.67,145.65,0.04454823]
[1742912403849,0.04373081,145.67,145.65,0.04454823]
[1742912404148,6.90783081,145.67,145.65,0.04454823]
[1742912404355,0.04373081,145.67,145.65,0.04454823]
[1742912404550,0.04373081,145.67,145.66,28.28]
[1742912404852,0.04373081,145.67,145.66,35.1444]
[1742912405540,6.8618,145.72,145.66,28.28]
[1742912405740,254.78,145.76,145.66,28.28]
[1742912405946,254.78,145.76,145.59,246.45862795]
[1742912405947,13.721,145.75,145.61,28.28]
[1742912406142,254.78,145.76,145.61,28.28]
[1742912406349,226.5,145.76,145.62,37.12138749]
[1742912406549,226.5,145.76,145.69,6.8629]
[1742912406750,226.5,145.76,145.67,28.28]
[1742912406948,0.04437089,145.74,145.71,0.04966438]
[1742912407348,0.04437089,145.74,145.71,28.32966438]
[1742912407548,0.04437089,145.74,145.72,6.8616]
[1742912407748,0.04437089,145.74,145.71,28.32966438]
[1742912408352,13.708,145.89,145.71,28.32966438]
[1742912408353,28.28,145.85,145.71,28.32966438]
[1742912408551,19.95862795,145.91,145.71,28.28]
[1742912408754,13.7036,145.93,145.74,19.95862795]
[1742912408948,28.28,145.94,145.75,28.28]
[1742912409151,6.8553,145.86,145.79,6.8582]
[1742912409350,226.5,145.98,145.8,28.28]
[1742912409552,0.0520288,145.84,145.81,0.05232219]
[1742912409855,28.28,145.96,145.88,0.05047617]
[1742912410058,28.28,145.96,145.8,48.23862795]
[1742912410059,28.28,145.96,145.86,28.28]
[1742912410255,0.052562,145.93,145.91,0.04396154]
[1742912410451,0.052562,145.93,145.88,28.28]
[1742912410757,0.05194062,145.93,145.91,0.04990731]
[1742912411245,6.8522,145.92,145.91,7.31e-06]
[1742912411449,0.05194062,145.93,145.84,28.28]
[1742912411649,28.28,145.94,145.84,28.28]
[1742912411850,28.28,146.02,145.84,28.28]
[1742912412053,246.39862795,146.04,145.84,28.28]
[1742912412353,246.39862795,146.04,145.85,21.3298998]
[1742912412354,28.28,146.03,145.85,21.3298998]
[1742912412545,0.04345785,145.95,145.93,0.04787589]
[1742912412750,28.28,146.03,145.92,28.28]
[1742912413053,0.04460034,145.95,145.93,0.04918255]
[1742912413253,0.04460034,145.95,145.94,6.8512]
[1742912413254,0.04541248,145.95,145.94,6.8512]
[1742912413551,0.04541248,145.95,145.93,0.04466697]
[1742912414456,0.04541248,145.95,145.93,6.90466697]
[1742912415158,0.04541248,145.95,145.94,6.8513]
[1742912415455,0.04541248,145.95,145.94,13.7113]
[1742912416661,226.36,146.1,145.94,6.86]
[1742912416856,28.26,146.09,145.92,60.56815874]
[1742912417053,226.36,146.1,145.93,1.25798224]
[1742912417247,254.62,146.1,145.93,1.25798224]
[1742912417653,0.04895936,146.03,146.0,0.04929118]
[1742912417954,254.62,146.1,146.0,28.26]
[1742912418153,137.6754,146.23,146.0,28.26]
[1742912418361,0.04373233,146.06,146.0,28.26]
[1742912418561,60.52815874,146.21,146.0,28.26]
[1742912418761,0.04647617,146.04,146.02,0.0461657]
[1742912418957,28.24,146.12,145.99,226.16]
[1742912419154,0.0448864,146.04,146.0,28.24]
[1742912419459,0.0448864,146.04,145.93,226.16]
[1742912419460,28.24,146.09,145.98,28.24]
[1742912419660,28.24,146.11,145.99,28.24]
[1742912420255,0.05099564,146.06,146.04,0.04662373]
[1742912420461,6.8452,146.07,146.04,0.04662373]
[1742912420759,0.05201171,146.06,146.04,0.04662373]
[1742912420954,28.24,146.11,146.04,0.04662373]
[1742912421162,0.04904809,146.06,146.04,0.04662373]
[1742912421656,0.0511619,146.06,146.04,0.04662373]
[1742912422562,6.8968619,146.06,146.04,0.04662373]
[1742912423062,0.0511619,146.06,146.04,0.04662373]
[1742912424357,0.0511619,146.06,146.05,6.8461]
[1742912424555,0.0511619,146.06,146.04,0.04662373]
[1742912425366,0.0511619,146.06,146.04,6.89312373]
[1742912425965,28.24,146.16,146.04,6.89312373]
[1742912426260,28.24,146.16,146.05,28.22]
[1742912426453,6.8439,146.1,146.05,28.22]
[1742912427059,0.04874858,146.09,146.06,0.04610342]
[1742912427457,28.24,146.16,146.07,28.22]
[1742912427657,0.04679613,146.09,146.07,28.22]
[1742912427864,28.24,146.16,146.07,28.22]
[1742912428060,0.04648813,146.09,146.07,28.26508691]
[1742912428362,6.8434,146.11,146.07,28.22]
[1742912428558,0.0444396,146.09,146.07,0.04596603]
[1742912428963,0.47621648,146.22,146.07,6.84]
[1742912429157,6.8412,146.16,146.1,6.8437]
[1742912429358,0.04783898,146.16,146.13,0.04571058]
[1742912429661,0.47621648,146.22,146.12,28.22]
[1742912429862,0.04529241,146.16,146.13,0.04738096]
[1742912430156,0.47621648,146.22,146.12,28.22]
[1742912430362,0.04559083,146.16,146.13,0.04443251]
[1742912430863,0.47621648,146.22,146.19,6.8394]
[1742912431058,0.47621648,146.22,146.2,28.22]
[1742912431468,0.51963269,146.22,146.2,28.26412716]
[1742912435163,0.51963269,146.22,146.2,35.10312716]
[1742912435572,225.9,146.34,146.2,35.10412716]
[1742912435764,254.1,146.34,146.22,6.838]
[1742912435960,254.1,146.34,146.2,28.26412716]
[1742912435961,254.1,146.34,146.2,28.22]
[1742912436367,254.1,146.34,146.2,35.0589]
[1742912436567,6.8364,146.26,146.2,35.0589]
[1742912436768,0.04357759,146.28,146.14,225.9]
[1742912437068,0.04357759,146.28,146.22,0.04736399]
[1742912437069,6.8379,146.23,146.22,0.04736399]
[1742912438074,6.84,146.23,146.14,28.2]
[1742912438263,28.24696928,146.24,146.14,28.2]
[1742912438471,27.56661361,146.24,146.14,28.2]
[1742912438668,28.2,146.27,146.14,28.2]
[1742912439267,0.05140403,146.22,146.19,0.0467591]
[1742912440280,0.05140403,146.22,146.04,9.34471499]
[1742912440467,28.22,146.23,146.12,6.8428]
[1742912440870,6.8408,146.17,146.1,28.24]
[1742912441169,28.22,146.23,146.1,28.24]
[1742912441566,0.0451841,146.15,146.12,0.04741717]
[1742912441770,28.22,146.19,146.1,28.24]
[1742912441972,0.04953599,146.15,146.12,0.04528161]
[1742912442173,0.04953599,146.15,146.12,0.06528819]
[1742912442376,6.8424,146.13,146.12,0.06528819]
[1742912443170,0.04953599,146.15,146.12,0.06528819]
[1742912444171,6.8424,146.13,146.12,0.06528819]
[1742912446283,6.84,146.13,146.04,37.12138749]
[1742912446571,28.2,146.14,146.04,37.12138749]
[1742912446972,6.8461,146.05,146.04,37.12138749]
[1742912447178,6.8461,146.05,146.04,26.76698749]
[1742912447380,6.8461,146.05,146.04,8.749e-05]
[1742912448082,35.04,146.05,146.02,31.51442826]
[1742912448280,28.2,146.05,146.02,19.20242826]
[1742912448680,6.847,146.03,146.02,19.20242826]
[1742912449076,13.687,146.03,146.02,2.826e-05]
[1742912449477,6.8475,146.02,146.01,175.5598329]
[1742912449674,6.8475,146.02,146.01,138.1831329]
[1742912451181,0.0476068,146.03,146.01,138.1831329]
[1742912451375,0.0476068,146.03,145.99,6.8487]
[1742912451782,0.0476068,146.03,145.98,28.2]
[1742912452382,0.0476068,146.03,145.95,28.23673857]
[1742912452581,0.0476068,146.03,145.95,35.08743857]
[1742912452982,0.0476068,146.03,145.95,28.23673857]
[1742912453283,6.8476,146.02,145.95,28.23673857]
[1742912453679,0.05022094,146.0,145.99,6.8486]
[1742912453984,17.7837277,146.05,145.95,28.23673857]
[1742912454282,0.04383126,146.01,146.0,6.8484]
[1742912454484,17.7837277,146.05,146.0,28.2]
[1742912454671,0.04443631,146.02,146.0,35.0484]
[1742912454876,0.04443631,146.02,146.0,28.2]
[1742912455378,6.89223631,146.02,146.0,28.2]
[1742912455582,0.04443631,146.02,145.97,28.2]
[1742912456084,0.04443631,146.02,145.99,6.8488]
[1742912456275,0.04443631,146.02,145.97,28.2]
[1742912457587,0.04443631,146.02,145.95,0.03673857]
[1742912458080,28.26443631,146.02,145.95,0.03673857]
[1742912458279,6.8495,145.98,145.95,6.88743857]
[1742912458789,0.04793737,145.98,145.96,6.85]
[1742912458986,0.04793737,145.98,145.95,0.03673857]
[1742912459381,0.04793737,145.98,145.96,6.8501]
[1742912459582,0.04793737,145.98,145.95,0.03673857]
[1742912460085,0.04793737,145.98,145.95,6.88723857]
[1742912460286,0.04793737,145.98,145.95,0.03673857]
[1742912460589,6.8499,145.97,145.95,0.03673857]
[1742912460886,0.04793737,145.98,145.95,0.03673857]
[1742912461083,6.8503,145.96,145.95,0.03673857]
[1742912463175,28.26793737,145.98,145.88,0.06742226]
[1742912463380,6.8536,145.89,145.88,0.06742226]
[1742912464090,0.05181797,145.9,145.88,0.06742226]
[1742912464686,0.05181797,145.9,145.89,6.8536]
[1742912466189,0.05181797,145.9,145.88,28.28742226]
[1742912466388,0.05181797,145.9,145.88,0.06742226]
[1742912466787,6.8536,145.89,145.88,0.06742226]
[1742912469182,35.0736,145.89,145.88,0.06742226]
[1742912469780,6.8564,145.84,145.76,225.98]
[1742912469982,28.22,145.89,145.76,225.98]
[1742912470186,0.0435587,145.82,145.78,28.22]
[1742912470385,6.8558,145.85,145.78,28.22]
[1742912470587,28.22,145.89,145.67,35.07688557]
[1742912470588,0.0451795,145.81,145.7,226.06]
[1742912470784,28.22,145.85,145.76,28.22]
[1742912470988,0.04878083,145.84,145.76,28.22]
[1742912471286,0.04878083,145.84,145.75,28.22]
[1742912471786,0.04878083,145.84,145.81,6.857]
[1742912472091,0.04878083,145.84,145.75,28.22]
[1742912472791,6.8568,145.83,145.79,6.8581]
[1742912473085,6.8568,145.83,145.75,28.22]
[1742912473290,6.8568,145.83,145.79,6.858]
[1742912473491,6.8571,145.82,145.75,28.22]
[1742912473694,28.22,145.85,145.75,28.22]
[1742912473890,0.04747755,145.81,145.79,6.858]
[1742912474087,0.04747755,145.81,145.75,28.22]
[1742912474688,28.24,145.9,145.75,28.22]
[1742912474880,28.20683995,145.98,145.79,19.79790428]
[1742912475081,1.25531123,145.97,145.82,19.79790428]
[1742912475292,56.44683995,145.98,145.82,19.79790428]
[1742912475592,6.852,145.93,145.89,6.8535]
[1742912475788,6.852,145.93,145.89,6.90097755]
[1742912475996,0.0449844,145.91,145.89,0.04747755]
[1742912476191,0.0449844,145.91,145.9,6.8531]
[1742912476390,0.04586299,145.92,145.89,0.04747755]
[1742912477392,0.04586299,145.92,145.91,6.8527]
[1742912477592,0.04586299,145.92,145.9,28.24]
[1742912477792,0.04586299,145.92,145.89,28.28747755]
[1742912477990,6.8527,145.91,145.89,0.04747755]
[1742912478191,0.04586299,145.92,145.89,0.04747755]
[1742912478392,0.04586299,145.92,145.91,6.8527]
[1742912479394,0.04586299,145.92,145.9,28.24]
[1742912479989,6.89836299,145.92,145.89,0.04747755]
[1742912480189,0.04586299,145.92,145.89,0.04747755]
[1742912481788,6.8531,145.9,145.89,0.04747755]
[1742912482896,6.8528,145.91,145.89,0.04747755]
[1742912483096,0.04586299,145.92,145.89,0.04747755]
[1742912483291,6.89816299,145.92,145.84,28.24]
[1742912483596,0.04586299,145.92,145.84,28.24]
[1742912483997,0.04586299,145.92,145.9,6.8529]
[1742912484295,0.04586299,145.92,145.84,28.24]
[1742912484498,0.04586299,145.92,145.91,6.8527]
[1742912484999,0.04586299,145.92,145.9,6.853]
[1742912485299,0.04586299,145.92,145.88,28.24]
[1742912485701,6.299e-05,145.92,145.91,6.8527]
[1742912487295,6.299e-05,145.92,145.9,0.04350196]
[1742912487897,6.299e-05,145.92,145.91,6.8527]
[1742912489097,102.55269189,146.05,145.91,6.86]
[1742912489299,102.55269189,146.05,145.98,6.8492]
[1742912489498,102.55269189,146.05,145.96,28.22]
[1742912489697,102.55269189,146.05,145.97,28.22]
[1742912490098,6.8469,146.04,145.97,28.22]
[1742912490299,0.04311272,146.02,146.0,0.04586299]
[1742912491008,0.04311272,146.02,146.01,35.068]
[1742912491605,1.272e-05,146.02,146.01,35.068]
[1742912492399,17.86785086,146.06,146.05,6.8461]
[1742912492604,17.86785086,146.06,146.05,35.0661]
[1742912493004,62.53895194,146.08,146.05,35.06]
[1742912493206,6.8457,146.06,145.98,226.08]
[1742912493508,37.28214868,146.08,146.05,0.05182944]
[1742912493705,37.23405194,146.08,145.99,28.22]
[1742912493895,0.05007672,146.03,145.99,28.22]
[1742912494209,0.05007672,146.03,146.02,0.04551707]
[1742912495097,28.27007672,146.03,145.93,28.22]
[1742912495302,28.22,146.03,145.93,28.22]
[1742912495603,6.8496,145.98,145.93,28.22]
[1742912495808,28.22,146.03,145.93,28.22]
[1742912496004,28.22,146.03,145.9,28.22]
[1742912496406,0.04879719,145.99,145.97,0.04345864]
[1742912496605,6.8494,145.98,145.97,0.04345864]
[1742912496809,28.26879719,145.99,145.9,28.22]
[1742912497108,28.22,145.99,145.9,28.22]
[1742912497305,28.22,145.99,145.86,226.0]
[1742912497502,28.22,145.99,145.87,6.8543]
[1742912497705,28.22,145.99,145.88,28.22]
[1742912497900,28.22,145.99,145.88,35.0739]
[1742912498098,0.04967402,145.95,145.88,35.0739]
[1742912498405,0.04967402,145.95,145.88,6.8539]
[1742912498607,0.04967402,145.95,145.88,28.22]
[1742912499207,0.04967402,145.95,145.91,6.8524]
[1742912499413,143.79790428,146.09,145.92,28.22]
[1742912499605,28.22,146.08,145.93,28.22]
[1742912499903,28.22,146.08,145.93,35.0715]
[1742912500104,28.22,146.08,145.93,28.22]
[1742912500308,19.79790428,146.06,145.93,28.22]